bitfinex/quotes_SOLUSD_20251202
["timestamp","ask_amount","ask_price","bid_price","bid_amount"]
[1764689359724,7.06701463,135.66,135.64,0.2]
[1764689359931,7.06701463,135.65,135.58,0.71]
[1764689360154,6.36701463,135.59,135.51,0.2]
[1764689360351,6.36701463,135.56,135.55,0.71]
[1764689360650,6.36701463,135.57,135.55,0.71]
[1764689361053,8.54,135.58,135.55,0.71]
[1764689361634,14.90701463,135.58,135.55,0.71]
[1764689361825,8.54,135.57,135.55,0.71]
[1764689362031,8.54,135.56,135.55,0.71]
[1764689362230,8.54,135.56,135.55,8.08735153]
[1764689363457,8.54,135.57,135.55,8.08735153]
[1764689363654,14.90701463,135.57,135.56,0.71]
[1764689364263,8.54,135.59,135.56,8.08678218]
[1764689364564,14.90701463,135.59,135.56,0.71]
[1764689364765,14.90701463,135.59,135.57,0.71]
[1764689365784,0.7,135.65,135.57,0.71]
[1764689366262,8.54,135.64,135.58,25.81501696]
[1764689366450,9.70237388,135.63,135.58,25.81501696]
[1764689366765,9.70237388,135.62,135.59,0.71]
[1764689366965,9.70237388,135.61,135.59,0.71]
[1764689367149,8.54,135.6,135.59,0.71]
[1764689367551,18.24237388,135.6,135.56,0.71]
[1764689367764,9.70237388,135.58,135.57,0.71]
[1764689367942,8.54,135.6,135.57,0.71]
[1764689368344,8.54,135.6,135.57,8.08617445]
[1764689368552,9.70237388,135.59,135.57,8.08617445]
[1764689368752,18.24237388,135.6,135.58,0.71]
[1764689369659,0.7,135.68,135.58,0.71]
[1764689369851,8.54,135.67,135.58,0.71]
[1764689370058,9.70237388,135.61,135.58,0.71]
[1764689370259,18.24237388,135.61,135.59,7.37517516]
[1764689370464,8.54,135.61,135.59,25.81311306]
[1764689370664,8.54,135.61,135.6,0.71]
[1764689370966,8.54,135.62,135.6,0.71]
[1764689371747,9.70237388,135.66,135.6,0.71]
[1764689371992,18.24237388,135.66,135.6,0.71]
[1764689372281,8.54,135.66,135.6,0.71]
[1764689372474,9.70237388,135.65,135.61,25.80930609]
[1764689372783,9.70237388,135.65,135.6,8.08445588]
[1764689373148,9.70237388,135.65,135.61,0.72]
[1764689373872,8.54,135.66,135.61,0.72]
[1764689374047,9.70237388,135.65,135.61,0.72]
[1764689374755,9.70237388,135.63,135.61,0.72]
[1764689375352,18.24237388,135.62,135.61,0.72]
[1764689375890,8.54,135.62,135.61,8.09408745]
[1764689376172,18.24237388,135.62,135.61,8.09408745]
[1764689376581,18.24237388,135.62,135.61,0.72]
[1764689377687,18.24237388,135.62,135.59,0.72]
[1764689377911,9.70237388,135.61,135.6,8.09461105]
[1764689378403,9.70237388,135.61,135.59,7.37500147]
[1764689378559,9.70237388,135.61,135.59,8.09500147]
[1764689378958,9.70237388,135.6,135.58,7.37559899]
[1764689379480,9.70237388,135.6,135.58,8.09559899]
[1764689379761,9.70237388,135.61,135.58,8.09559899]
[1764689380170,9.70237388,135.6,135.58,8.09559899]
[1764689380471,15.91381614,135.62,135.58,8.09559899]
[1764689380761,9.70237388,135.6,135.58,8.09559899]
[1764689381792,18.22237388,135.63,135.59,0.66]
[1764689381983,18.22237388,135.63,135.6,7.37463126]
[1764689382584,9.70237388,135.62,135.61,0.66]
[1764689382794,9.70237388,135.62,135.6,7.37463126]
[1764689382963,9.70237388,135.61,135.6,8.03463126]
[1764689383167,9.70237388,135.61,135.59,18.43688278]
[1764689383168,9.70237388,135.61,135.59,7.37494898]
[1764689383367,8.52,135.6,135.58,7.37528207]
[1764689385294,8.52,135.61,135.59,0.66]
[1764689386798,18.22237388,135.61,135.59,8.03515349]
[1764689386979,18.22237388,135.61,135.59,0.66]
[1764689387177,18.22237388,135.61,135.54,9.90237388]
[1764689387178,18.22237388,135.61,135.58,7.37570415]
[1764689387382,9.70237388,135.6,135.58,7.37570415]
[1764689387582,9.70237388,135.6,135.58,8.03570415]
[1764689387977,9.70237388,135.59,135.56,19.10132633]
[1764689388177,9.70237388,135.58,135.57,0.66]
[1764689388382,9.70237388,135.6,135.57,0.66]
[1764689388586,9.70237388,135.6,135.58,7.37571913]
[1764689388792,9.70237388,135.59,135.57,0.66]
[1764689389601,8.52,135.61,135.57,8.0360935]
[1764689389976,9.70237388,135.6,135.57,8.0360935]
[1764689390178,12.13404072,135.6,135.57,8.0360935]
[1764689390998,8.52,135.61,135.57,8.0360935]
[1764689391180,16.60410476,135.61,135.57,0.66]
[1764689391501,9.23,135.61,135.57,8.03620525]
[1764689391793,9.23,135.61,135.57,0.66]
[1764689391794,16.60410348,135.61,135.57,0.66]
[1764689391998,12.13404072,135.58,135.54,0.2]
[1764689392208,12.13404072,135.55,135.54,0.2]
[1764689393698,18.43722768,135.6,135.54,7.57782572]
[1764689393881,12.13404072,135.56,135.54,8.23782572]
[1764689394086,8.52,135.55,135.54,8.23782572]
[1764689394283,12.13404072,135.58,135.54,26.02256528]
[1764689394481,8.52,135.57,135.54,26.02256528]
[1764689394900,8.52,135.57,135.56,25.8188256]
[1764689395403,58.7085182,135.67,135.56,38.61286632]
[1764689395404,8.52,135.61,135.56,38.61286632]
[1764689395602,8.52,135.61,135.57,0.66]
[1764689395778,12.13404072,135.6,135.57,0.66]
[1764689395978,8.52,135.61,135.57,0.66]
[1764689396173,12.13404072,135.6,135.57,0.66]
[1764689396898,12.13404072,135.6,135.58,7.37571913]
[1764689397409,8.52,135.61,135.57,8.03614575]
[1764689397585,20.65404072,135.6,135.57,8.03614575]
[1764689397912,8.52,135.6,135.57,7.37614575]
[1764689398209,12.13404072,135.58,135.54,8.23765526]
[1764689398404,12.13404072,135.57,135.54,8.23765526]
[1764689398608,0.71,135.59,135.43,8.52]
[1764689398776,25.81692114,135.57,135.35,12.13404072]
[1764689398980,25.81692114,135.57,135.44,0.66]
[1764689399295,20.65404072,135.56,135.44,0.66]
[1764689399694,8.52,135.56,135.44,0.66]
[1764689400109,12.13404072,135.54,135.47,12.13404072]
[1764689400294,20.65404072,135.55,135.48,12.13404072]
[1764689400616,0.73855243,135.62,135.46,8.52]
[1764689400820,0.73855243,135.66,135.55,12.13404072]
[1764689400990,12.13404072,135.64,135.53,8.52]
[1764689401192,0.73855243,135.63,135.53,8.52]
[1764689401399,0.73855243,135.65,135.55,12.13404072]
[1764689401715,0.73855243,135.65,135.54,0.66]
[1764689401917,12.13404072,135.6,135.54,0.66]
[1764689402094,0.73855243,135.65,135.54,0.66]
[1764689402413,12.13404072,135.62,135.54,12.79404072]
[1764689402613,12.13404072,135.6,135.54,0.66]
[1764689402822,12.13404072,135.59,135.56,25.8188256]
[1764689403116,9.25855243,135.64,135.56,25.8188256]
[1764689403291,9.25855243,135.64,135.56,26.4788256]
[1764689403491,12.13404072,135.61,135.56,26.4788256]
[1764689403691,12.13404072,135.61,135.57,0.66]
[1764689403991,12.13404072,135.62,135.57,0.66]
[1764689404317,8.52,135.64,135.57,0.66]
[1764689404493,12.13404072,135.63,135.57,0.66]
[1764689404910,9.25855243,135.68,135.59,37.94715378]
[1764689405209,12.87259315,135.75,135.62,12.13404072]
[1764689405414,12.13404072,135.72,135.65,12.13404072]
[1764689405588,12.13404072,135.69,135.65,0.66]
[1764689405791,12.13404072,135.71,135.66,0.66]
[1764689406008,12.13404072,135.72,135.66,0.66]
[1764689406417,17.7,135.76,135.68,12.13404072]
[1764689406625,17.7,135.76,135.66,0.66]
[1764689406626,12.13404072,135.76,135.66,0.66]
[1764689406809,12.13404072,135.76,135.67,62.65202327]
[1764689407019,8.72,135.78,135.71,12.13404072]
[1764689407217,0.83855243,135.85,135.77,12.13404072]
[1764689407416,0.83855243,135.85,135.7,8.52]
[1764689407417,0.1,135.85,135.8,12.13404072]
[1764689407604,0.1,135.85,135.81,0.66]
[1764689408422,0.1,135.85,135.81,12.79404072]
[1764689408601,0.1,135.85,135.81,0.66]
[1764689408794,0.1,135.85,135.82,0.66]
[1764689408998,0.1,135.85,135.83,12.13404072]
[1764689409218,0.1,135.85,135.82,26.42931268]
[1764689409417,0.1,135.88,135.83,12.79404072]
[1764689409622,12.13404072,135.84,135.77,0.66]
[1764689409831,0.73855243,135.83,135.77,0.66]
[1764689410028,12.13404072,135.78,135.66,0.66]
[1764689410327,12.13404072,135.7,135.66,0.66]
[1764689410534,0.73855243,135.77,135.66,12.79404072]
[1764689410704,0.71,135.8,135.66,0.66]
[1764689410904,0.73855243,135.8,135.74,12.13404072]
[1764689411102,0.71,135.84,135.72,25.78838785]
[1764689411103,0.71,135.87,135.78,12.13404072]
[1764689411304,12.13404072,135.84,135.75,0.66]
[1764689411521,12.13404072,135.84,135.77,12.13404072]
[1764689411721,0.71,135.87,135.77,12.13404072]
[1764689411938,0.73855243,135.86,135.78,0.71]
[1764689412238,0.73855243,135.87,135.78,12.84404072]
[1764689412527,0.1,135.88,135.83,12.13404072]
[1764689412705,0.1,135.88,135.85,12.13404072]
[1764689412907,12.13404072,135.92,135.85,25.76370997]
[1764689413218,12.13404072,135.89,135.86,0.71]
[1764689413414,12.13404072,135.91,135.86,0.71]
[1764689413616,1.44855243,135.95,135.86,0.71]
[1764689413812,0.73855243,135.96,135.87,12.13404072]
[1764689414137,12.13404072,135.93,135.87,12.13404072]
[1764689414310,12.13404072,135.93,135.88,0.71]
[1764689414934,1.54855243,135.97,135.88,8.06897174]
[1764689415134,0.83855243,135.97,135.88,8.06897174]
[1764689415439,0.83855243,135.97,135.89,12.84404072]
[1764689415737,0.1,135.97,135.92,12.13404072]
[1764689415921,12.13404072,135.93,135.89,0.71]
[1764689416129,0.81,135.97,135.9,0.71]
[1764689416330,12.13404072,135.96,135.9,12.84404072]
[1764689416516,1.44855243,136.06,135.95,12.13404072]
[1764689416728,12.13404072,136.03,135.97,12.13404072]
[1764689417027,1.44855243,136.06,135.98,7.35402265]
[1764689417233,0.73855243,136.06,135.98,8.06402265]
[1764689417534,12.13404072,136.01,135.96,0.71]
[1764689417706,1.44855243,136.05,135.94,12.13404072]
[1764689417910,0.71,136.04,135.94,0.71]
[1764689418136,12.13404072,135.95,135.9,0.71]
[1764689418319,12.13404072,135.91,135.86,0.71]
[1764689418528,12.13404072,135.96,135.86,0.71]
[1764689418837,12.13404072,135.91,135.86,0.71]
[1764689419035,8.5,135.98,135.86,0.71]
[1764689419242,0.73855243,136.05,135.92,12.13404072]
[1764689419446,12.13404072,135.98,135.91,12.13404072]
[1764689419613,15.85077918,136.04,135.86,26.47139432]
[1764689419614,12.13404072,135.96,135.87,0.71]
[1764689419934,1.44855243,136.03,135.89,12.13404072]
[1764689420134,12.13404072,135.96,135.9,12.13404072]
[1764689420619,0.71,135.99,135.91,0.71]
[1764689421027,12.13404072,136.01,135.95,12.13404072]
[1764689421341,1.44855243,136.03,135.94,12.13404072]
[1764689421654,12.13404072,135.99,135.94,0.71]
[1764689421816,12.13404072,135.97,135.94,0.71]
[1764689422012,1.44855243,136.02,135.94,0.71]
[1764689422214,0.71,136.01,135.72,12.13404072]
[1764689422409,12.13404072,135.92,135.87,0.71]
[1764689422637,6.68,135.97,135.87,12.84404072]
[1764689422849,12.13404072,135.93,135.87,12.84404072]
[1764689423311,12.13404072,135.9,135.85,0.71]
[1764689423852,0.71,135.9,135.83,0.71]
[1764689424152,0.73855243,135.93,135.79,0.71]
[1764689424315,12.13404072,135.92,135.86,12.13404072]
[1764689424518,0.71,135.94,135.86,12.13404072]
[1764689424833,12.13404072,135.89,135.79,0.71]
[1764689425032,12.13404072,135.88,135.8,25.77319587]
[1764689425349,12.13404072,135.85,135.79,38.61912608]
[1764689425920,1.44855243,135.94,135.79,8.0742692]
[1764689426132,8.8049954,135.94,135.81,12.13404072]
[1764689426327,12.13404072,135.86,135.79,8.0742692]
[1764689426531,7.95506478,135.86,135.79,16.02933398]
[1764689426724,7.95506478,135.86,135.79,26.48505055]
[1764689426926,7.95506478,135.85,135.79,34.44011533]
[1764689427144,7.95506478,135.85,135.79,26.48505055]
[1764689427339,8.5,135.93,135.79,34.44011533]
[1764689427551,7.95506478,135.85,135.79,26.48505055]
[1764689427848,7.95506478,135.8,135.76,0.1]
[1764689428042,7.95506478,135.77,135.76,0.1]
[1764689428542,7.95506478,135.78,135.76,0.1]
[1764689429325,7.95506478,135.77,135.76,0.1]
[1764689429637,7.95506478,135.79,135.76,0.1]
[1764689430346,7.35564545,135.95,135.78,7.95506478]
[1764689430653,7.95506478,135.84,135.78,7.95506478]
[1764689431024,0.73855243,135.94,135.8,7.95506478]
[1764689431338,0.73855243,135.94,135.81,7.36322803]
[1764689431339,7.95506478,135.86,135.81,7.36322803]
[1764689431643,7.95506478,135.86,135.81,25.77129812]
[1764689431846,7.95506478,135.86,135.81,7.36322803]
[1764689432541,7.95506478,135.86,135.81,25.77129812]
[1764689432735,7.95506478,135.86,135.81,7.36322803]
[1764689433145,7.95506478,135.84,135.76,0.1]
[1764689433319,7.95506478,135.83,135.77,7.95506478]
[1764689434044,0.73855243,135.88,135.81,7.95506478]
[1764689434248,7.95506478,135.89,135.82,7.95506478]
[1764689434432,7.95506478,135.89,135.83,7.95506478]
[1764689434619,0.73855243,136.02,135.85,7.95506478]
[1764689434819,0.73855243,136.01,135.78,0.73648549]
[1764689435021,4.8,136.01,135.88,7.95506478]
[1764689435335,7.95506478,135.94,135.89,25.75612627]
[1764689435644,7.95506478,135.95,135.89,25.75612627]
[1764689435827,22.08887089,136.06,135.89,15.313958]
[1764689436032,8.08879131,136.05,135.96,7.95506478]
[1764689436343,8.48,136.04,135.99,7.95506478]
[1764689436551,7.95506478,136.0,135.94,7.95506478]
[1764689436847,7.95506478,135.97,135.92,7.95506478]
[1764689437048,0.73855243,136.03,135.89,62.55059238]
[1764689437252,7.95506478,135.94,135.76,0.83659398]
[1764689437427,0.73855243,136.01,135.78,52.66912947]
[1764689437627,0.73855243,136.01,135.93,7.95506478]
[1764689437934,7.95506478,135.99,135.94,7.95506478]
[1764689438131,0.73855243,136.03,135.96,7.95506478]
[1764689438327,7.95506478,136.01,135.96,7.95506478]
[1764689438741,0.73855243,136.03,135.96,7.95506478]
[1764689438937,7.95506478,136.02,135.86,8.48]
[1764689439139,8.69361721,136.01,135.86,8.48]
[1764689439340,8.69361721,136.01,135.96,15.31016922]
[1764689439547,7.95506478,136.0,135.96,7.35510444]
[1764689439738,7.95506478,136.01,135.96,25.74286554]
[1764689440052,0.73855243,136.03,135.96,33.69793032]
[1764689440353,8.69361721,136.05,135.99,7.95506478]
[1764689440557,7.95506478,136.02,135.97,7.95506478]
[1764689440746,7.95506478,136.01,135.96,25.74286554]
[1764689440934,8.69361721,136.01,135.96,33.69793032]
[1764689441337,7.95506478,136.02,135.98,7.35402265]
[1764689441847,7.95506478,136.02,135.98,25.73907927]
[1764689442052,8.69361721,136.01,135.9,8.69361721]
[1764689442261,0.73855243,136.01,135.93,7.95506478]
[1764689442432,7.95506478,135.99,135.91,7.35781031]
[1764689442754,7.95506478,135.98,135.93,7.95506478]
[1764689443054,7.95506478,136.0,135.94,7.95506478]
[1764689443285,0.73855243,135.99,135.93,15.31129641]
[1764689443432,7.95506478,135.99,135.94,7.95506478]
[1764689443628,7.95506478,136.01,135.96,7.95506478]
[1764689443936,7.95506478,136.01,135.93,25.74805094]
[1764689443937,7.95506478,136.02,135.97,7.95506478]
[1764689444137,0.73855243,136.03,135.97,7.95506478]
[1764689444451,7.95506478,136.02,135.97,7.95506478]
[1764689444753,8.69361721,136.01,135.95,7.95506478]
[1764689445133,7.95506478,136.0,135.93,25.74805094]
[1764689445328,0.73855243,135.99,135.95,25.74475909]
[1764689445651,0.73855243,136.01,135.95,7.35564545]
[1764689445850,0.73855243,136.01,135.91,7.35781031]
[1764689446158,7.95506478,135.99,135.94,7.95506478]
[1764689446464,0.73855243,135.98,135.93,7.95506478]
[1764689446660,7.95506478,135.98,135.91,25.75233609]
[1764689446953,7.95506478,135.98,135.93,7.95506478]
[1764689447756,7.95506478,135.98,135.88,62.55493619]
[1764689447930,7.95506478,135.98,135.93,7.95506478]
[1764689448333,7.95506478,135.98,135.92,7.95506478]
[1764689448532,7.95506478,135.99,135.93,7.95506478]
[1764689448732,7.95506478,135.99,135.88,62.55493619]
[1764689448733,7.95506478,135.99,135.94,7.95506478]
[1764689449234,26.46829807,136.03,135.95,7.95506478]
[1764689449448,7.95506478,135.96,135.91,7.95506478]
[1764689449644,7.95506478,135.98,135.93,7.95506478]
[1764689450455,7.95506478,135.96,135.91,7.95506478]
[1764689450636,0.73855243,135.99,135.93,7.95506478]
[1764689450848,16.43506478,135.99,135.93,7.95506478]
[1764689451051,8.69361721,135.98,135.93,7.95506478]
[1764689451370,7.95506478,136.0,135.95,7.95506478]
[1764689451666,8.69361721,135.99,135.96,7.35510444]
[1764689452029,0.73855243,136.04,135.97,7.95506478]
[1764689452232,7.95506478,136.0,135.96,7.35510444]
[1764689452446,8.69361721,135.99,135.95,7.35544889]
[1764689452859,0.73855243,135.99,135.95,33.69962731]
[1764689453039,7.95506478,136.01,135.96,7.95506478]
[1764689453240,16.43506478,136.02,135.96,7.95506478]
[1764689453435,7.95506478,136.0,135.9,36.79130828]
[1764689453749,8.69361721,136.01,135.96,7.95506478]
[1764689453947,0.73855243,136.01,135.96,7.95506478]
[1764689454151,7.95506478,136.02,135.96,7.95506478]
[1764689454352,0.73855243,136.01,135.96,7.95506478]
[1764689454558,8.69361721,136.02,135.96,7.95506478]
[1764689454753,8.69361721,136.02,135.97,7.95506478]
[1764689455059,7.95506478,136.04,135.99,7.95506478]
[1764689455550,0.73855243,136.05,136.0,7.95506478]
[1764689455744,7.95506478,136.05,136.0,7.95506478]
[1764689456064,0.73855243,136.06,136.01,7.95506478]
[1764689456244,8.69361721,136.06,136.01,7.95506478]
[1764689456852,0.73855243,136.06,136.02,7.95506478]
[1764689457160,0.1,136.07,136.02,7.95506478]
[1764689457161,0.83855243,136.07,136.02,7.95506478]
[1764689457376,7.95506478,136.06,136.01,7.95506478]
[1764689457544,8.69361721,136.05,135.93,25.74854703]
[1764689457874,8.08907618,136.05,135.93,25.74854703]
[1764689458053,7.95506478,136.02,135.97,7.95506478]
[1764689458255,7.95506478,136.03,135.98,7.95506478]
[1764689458764,0.73855243,136.06,135.98,7.95506478]
[1764689458937,7.95506478,136.03,135.98,7.95506478]
[1764689459142,8.69361721,136.03,135.98,7.95506478]
[1764689459341,7.95506478,136.03,135.98,7.95506478]
[1764689459571,17.17361721,136.04,135.99,25.73718655]
[1764689460071,8.48,136.05,136.01,7.95506478]
[1764689460251,0.83855243,136.07,136.02,7.95506478]
[1764689460456,9.31855243,136.07,136.02,7.95506478]
[1764689461055,8.58,136.07,136.02,7.95506478]
[1764689461253,16.53506478,136.07,135.99,62.50459591]
[1764689461546,0.1,136.09,136.06,15.30476344]
[1764689461749,0.1,136.09,136.07,7.95506478]
[1764689461956,0.1,136.09,136.06,33.67901009]
[1764689462271,0.1,136.09,135.98,8.48]
[1764689462476,8.05506478,136.09,136.04,7.95506478]
[1764689462772,7.95506478,136.07,136.02,7.95506478]
[1764689463148,7.95506478,136.04,135.94,71.00758569]
[1764689463473,7.95506478,136.03,135.94,71.00758569]
[1764689463645,15.30660473,136.03,135.98,7.3538542]
[1764689463845,16.43506478,136.05,135.99,7.95506478]
[1764689464043,7.95506478,136.04,135.99,7.95506478]
[1764689464249,7.95506478,136.04,135.98,33.6939756]
[1764689464453,8.69361721,136.03,135.98,33.6939756]
[1764689464875,0.73855243,136.08,136.01,7.95506478]
[1764689465065,0.73855243,136.08,135.98,25.73891082]
[1764689465066,7.95506478,136.05,136.0,7.95506478]
[1764689465448,7.95506478,136.03,135.98,7.95506478]
[1764689465652,7.95506478,136.0,135.95,7.95506478]
[1764689465945,15.83290588,136.01,135.9,25.75423104]
[1764689466149,7.95506478,135.99,135.94,7.95506478]
[1764689466351,7.95506478,136.01,135.96,7.95506478]
[1764689466561,8.48,136.02,135.97,7.95506478]
[1764689466782,8.48,136.02,135.9,25.75423104]
[1764689467076,7.95506478,135.97,135.92,7.95506478]
[1764689467266,7.95506478,135.96,135.91,7.95506478]
[1764689467471,8.48,136.02,135.9,25.75423104]
[1764689467781,7.95506478,135.95,135.9,33.70929582]
[1764689468156,7.95506478,135.96,135.91,7.95506478]
[1764689469094,7.95506478,135.92,135.87,7.95506478]
[1764689469260,16.43506478,135.93,135.88,7.95506478]
[1764689469951,7.95506478,135.91,135.86,7.95506478]
[1764689470170,7.95506478,135.9,135.85,7.95506478]
[1764689470552,7.95506478,135.91,135.86,7.95506478]
[1764689470947,7.95506478,135.91,135.86,7.36046879]
[1764689471284,7.95506478,135.9,135.85,7.95506478]
[1764689471747,7.95506478,135.91,135.81,18.40672405]
[1764689471947,7.95506478,135.89,135.84,7.95506478]
[1764689472162,7.95506478,135.89,135.81,18.40672405]
[1764689472354,7.95506478,135.9,135.85,7.95506478]
[1764689472862,7.95506478,135.88,135.78,0.1]
[1764689473194,7.95506478,135.88,135.83,7.95506478]
[1764689473350,7.95506478,135.87,135.83,7.95506478]
[1764689473555,7.95506478,135.85,135.79,25.77509389]
[1764689473855,7.95506478,135.85,135.8,7.95506478]
[1764689474055,7.95506478,135.85,135.79,25.77509389]
[1764689474056,8.48,135.86,135.82,7.95506478]
[1764689474276,16.43506478,135.86,135.82,7.95506478]
[1764689474480,7.95506478,135.88,135.79,62.59665659]
[1764689474653,16.43506478,135.88,135.84,7.95506478]
[1764689474860,8.48,135.88,135.85,7.36105999]
[1764689475078,16.43506478,135.88,135.85,7.36105999]
[1764689475754,7.95506478,135.88,135.85,7.36105999]
[1764689475955,8.48,135.89,135.85,7.36105999]
[1764689476158,7.95506478,135.88,135.85,7.36105999]
[1764689476787,16.43506478,135.89,135.85,25.76370997]
[1764689476987,7.95506478,135.88,135.84,7.95506478]
[1764689477194,7.95506478,135.87,135.82,7.95506478]
[1764689477880,8.48,135.88,135.82,7.95506478]
[1764689478078,7.95506478,135.87,135.82,7.95506478]
[1764689478273,8.48,135.88,135.84,7.95506478]
[1764689478457,16.43506478,135.88,135.84,7.95506478]
[1764689478781,16.43506478,135.88,135.83,7.95506478]
[1764689478986,16.43506478,135.88,135.84,7.36160188]
[1764689479281,8.48,135.88,135.84,33.72067137]
[1764689479460,16.43506478,135.88,135.84,25.76560659]
[1764689479659,7.95506478,135.89,135.84,33.72067137]
[1764689479859,16.43506478,135.89,135.84,33.72067137]
[1764689480059,7.95506478,135.88,135.84,33.72067137]
[1764689480679,7.95506478,135.87,135.84,7.36160188]
[1764689481070,9.21855243,135.89,135.78,0.1]
[1764689481071,7.95506478,135.85,135.78,0.1]
[1764689481272,7.95506478,135.82,135.78,8.05506478]
[1764689481481,7.95506478,135.82,135.78,7.46481908]
[1764689481680,7.95506478,135.81,135.78,7.46481908]
[1764689481883,7.95506478,135.8,135.78,0.1]
[1764689482084,8.48,135.83,135.79,7.95506478]
[1764689482257,16.43506478,135.83,135.79,7.95506478]
[1764689482461,8.48,135.83,135.8,7.95506478]
[1764689482662,8.48,135.85,135.82,7.95506478]
[1764689482857,8.48,135.85,135.81,7.95506478]
[1764689483065,8.48,135.85,135.78,0.1]
[1764689483280,7.95506478,135.83,135.78,0.1]
[1764689483589,7.95506478,135.83,135.79,7.95506478]
[1764689484381,7.95506478,135.84,135.79,7.95506478]
[1764689484881,8.48,135.85,135.75,0.1]
[1764689484882,7.95506478,135.85,135.75,0.1]
[1764689485081,7.95506478,135.84,135.79,7.95506478]
[1764689485268,18.39756426,135.89,135.8,7.95506478]
[1764689485468,7.95506478,135.85,135.75,0.1]
[1764689485668,0.73855243,135.84,135.75,0.1]
[1764689485897,7.95506478,135.77,135.75,0.1]
[1764689486392,7.95506478,135.72,135.59,7.95506478]
[1764689486614,7.95506478,135.65,135.52,13.81117066]
[1764689486790,7.95506478,135.65,135.6,7.95506478]
[1764689487168,7.95506478,135.65,135.52,7.95506478]
[1764689487169,18.42538957,135.69,135.61,15.32915223]
[1764689487374,7.95506478,135.66,135.61,15.32915223]
[1764689487575,8.54,135.68,135.61,33.76437087]
[1764689487894,7.36756796,135.73,135.62,0.71]
[1764689488074,7.95506478,135.7,135.63,7.95506478]
[1764689488274,8.54,135.73,135.64,7.95506478]
[1764689488603,12.1149381,135.69,135.62,12.8249381]
[1764689488768,12.1149381,135.7,135.63,12.1149381]
[1764689488969,12.1149381,135.71,135.64,12.1149381]
[1764689489176,12.1149381,135.71,135.64,12.8249381]
[1764689489380,12.1149381,135.7,135.65,26.51169553]
[1764689489782,12.1149381,135.7,135.66,0.71]
[1764689490003,12.1149381,135.72,135.66,0.71]
[1764689490293,0.7,135.73,135.66,0.71]
[1764689490294,12.1149381,135.75,135.68,12.1149381]
[1764689490497,12.1149381,135.75,135.66,0.71]
[1764689490665,12.1149381,135.75,135.68,12.1149381]
[1764689490868,12.1149381,135.75,135.69,12.1149381]
[1764689491304,12.1149381,135.75,135.69,12.8249381]
[1764689491599,9.27855243,135.77,135.7,7.36919675]
[1764689491800,12.1149381,135.76,135.7,26.50218864]
[1764689491969,9.27855243,135.77,135.7,26.50218864]
[1764689492172,12.1149381,135.75,135.7,26.50218864]
[1764689492389,17.34430885,135.77,135.7,7.36919675]
[1764689492390,12.1149381,135.73,135.7,7.36919675]
[1764689493178,12.1149381,135.74,135.7,7.36919675]
[1764689493710,12.85349053,135.75,135.7,19.12299189]
[1764689493899,12.85349053,135.75,135.7,18.42299189]
[1764689494102,12.85349053,135.75,135.7,19.12299189]
[1764689494384,12.85349053,135.75,135.71,0.7]
[1764689494385,0.73855243,135.75,135.71,0.7]
[1764689494590,0.73855243,135.78,135.72,12.1149381]
[1764689494787,0.73855243,135.79,135.73,12.1149381]
[1764689495393,0.73855243,135.8,135.75,12.1149381]
[1764689495591,12.1149381,135.81,135.75,25.78268876]
[1764689495892,0.73855243,135.8,135.75,26.48268876]
[1764689496089,20.6549381,135.82,135.76,0.7]
[1764689496298,0.73855243,135.81,135.76,0.7]
[1764689496799,8.52,135.83,135.77,12.1149381]
[1764689497000,0.73855243,135.82,135.78,12.1149381]
[1764689497418,12.1149381,135.85,135.79,12.8149381]
[1764689497600,0.73855243,135.84,135.8,25.77319587]
[1764689497799,12.1149381,135.85,135.8,25.77319587]
[1764689498009,0.73855243,135.84,135.8,25.77319587]
[1764689498198,0.73855243,135.84,135.8,26.47319587]
[1764689498505,12.1149381,135.86,135.81,0.7]
[1764689498811,0.69,135.9,135.81,12.8149381]
[1764689498812,8.52,135.89,135.81,12.8149381]
[1764689499108,12.85349053,135.88,135.81,12.8149381]
[1764689499407,12.85349053,135.88,135.82,0.7]
[1764689499720,0.73855243,135.88,135.83,25.76750349]
[1764689499890,12.85349053,135.88,135.83,25.76750349]
[1764689500091,12.85349053,135.88,135.83,26.46750349]
[1764689500591,12.1149381,135.87,135.8,12.1149381]
[1764689500799,0.73855243,135.86,135.81,0.7]
[1764689501001,12.1149381,135.88,135.81,12.8149381]
[1764689501217,12.85349053,135.89,135.83,12.1149381]
[1764689501424,0.73855243,135.89,135.83,12.1149381]